fUST/lending_fUST_20241117
["ID","MTS","AMOUNT","RATE_DAILY","PERIOD"]
[342419293,1731841846916,-882.04,0.00021917,2]
[342419294,1731841846926,-471.02656822,0.00021917,2]
[342419295,1731841846936,-632.22,0.00021917,2]
[342419296,1731841846947,-500.0,0.00021917,2]
[342419297,1731841846957,-500.0,0.00021917,2]
[342419298,1731841846967,-500.0,0.00021917,2]
[342419299,1731841846976,-500.0,0.00021917,2]
[342419300,1731841846986,-500.0,0.00021917,2]
[342419301,1731841846996,-500.0,0.00021917,2]
[342419302,1731841847005,-500.0,0.00021917,2]
[342419303,1731841847014,-500.0,0.00021917,2]
[342419304,1731841847023,-1335.58,0.00021917,2]
[342419305,1731841847033,-500.0,0.00021917,2]
[342419306,1731841847046,-500.0,0.00021917,2]
[342419307,1731841847056,-528.94868575,0.00021917,2]
[342419308,1731841847066,-507.31604368,0.00021917,2]
[342419309,1731841847077,-500.0,0.00021917,2]
[342419310,1731841847088,-500.0,0.00021917,2]
[342419311,1731841847097,-1263.38,0.00021917,2]
[342419312,1731841847106,-500.0,0.00021917,2]
[342419313,1731841847116,-227.55225655,0.00021917,2]
[342419314,1731841847125,-500.0,0.00021917,2]
[342419315,1731841847135,-622.83,0.00021917,2]
[342419316,1731841847145,-500.0,0.00021917,2]
[342419317,1731841847155,-500.0,0.00021917,2]
[342419318,1731841847165,-2336.0,0.00021917,2]
[342419319,1731841847178,-500.0,0.00021917,2]
[342419320,1731841847188,-500.0,0.00021917,2]
[342419321,1731841847198,-500.0,0.00021917,2]
[342419322,1731841847208,-500.0,0.00021917,2]
[342419323,1731841847219,-500.0,0.00021917,2]
[342419324,1731841847230,-2222.84,0.00021917,2]
[342419325,1731841847240,-2222.84,0.00021917,2]
[342419326,1731841847250,-500.0,0.00021917,2]
[342419327,1731841847262,-2222.84,0.00021917,2]
[342419328,1731841847272,-2222.84,0.00021917,2]
[342419329,1731841847282,-2222.84,0.00021917,2]
[342419330,1731841847291,-548.21306805,0.00021917,2]
[342419331,1731841847303,-2222.84,0.00021917,2]
[342419332,1731841847313,-500.0,0.00021917,2]
[342419333,1731841847323,-2222.84,0.00021917,2]
[342419334,1731841847332,-2222.84,0.00021917,2]
[342419335,1731841847342,-550.06504724,0.00021917,2]
[342419336,1731841847351,-1575.44,0.00021917,2]
[342419337,1731841847360,-2222.84,0.00021917,2]
[342419338,1731841847370,-2222.84,0.00021917,2]
[342419339,1731841847379,-2222.84,0.00021917,2]
[342419340,1731841847389,-2222.84,0.00021917,2]
[342419341,1731841847398,-500.0,0.00021917,2]
[342419342,1731841847408,-500.0,0.00021917,2]
[342419343,1731841847418,-2222.84,0.00021917,2]
[342419344,1731841847428,-2222.84,0.00021917,2]
[342419345,1731841847437,-588.39,0.00021917,2]
[342419346,1731841847447,-2222.84,0.00021917,2]
[342419347,1731841847457,-2222.84,0.00021917,2]
[342419348,1731841847466,-2222.84,0.00021917,2]
[342419349,1731841847475,-2222.84,0.00021917,2]
[342419350,1731841847485,-2222.84,0.00021917,2]
[342419351,1731841847495,-2222.84,0.00021917,2]
[342419352,1731841847504,-2222.84,0.00021917,2]
[342419353,1731841847513,-500.0,0.00021917,2]
[342419354,1731841847523,-2222.84,0.00021917,2]
[342419355,1731841847532,-534.14362279,0.00021917,2]
[342419356,1731841847542,-2222.84,0.00021917,2]
[342419357,1731841847554,-2222.96897993,0.00021917,2]
[342419358,1731841847563,-500.0,0.00021917,2]
[342419359,1731841847572,-633.16,0.00021917,2]
[342419360,1731841847581,-500.0,0.00021917,2]
[342419361,1731841847591,-1465.43,0.00021917,2]
[342419362,1731841847600,-174.44978859,0.00021917,2]
[342419363,1731841847609,-500.0,0.00021917,2]
[342419364,1731841847618,-500.0,0.00021917,2]
[342419365,1731841847627,-151.0,0.00021917,2]
[342419366,1731841847638,-151.0,0.00021917,2]
[342419367,1731841847648,-500.0,0.00021917,2]
[342419368,1731841847657,-151.0,0.00021917,2]
[342419369,1731841847667,-500.0,0.00021917,2]
[342419370,1731841847677,-163.883792,0.00021917,2]
[342419371,1731841847687,-500.0,0.00021917,2]
[342419372,1731841847697,-1733.66,0.00021917,2]
[342419373,1731841847706,-557.55,0.00021917,2]
[342419374,1731841847715,-500.0,0.00021917,2]
[342419375,1731841847725,-500.0,0.00021917,2]
[342419376,1731841847734,-500.0,0.00021917,2]
[342419377,1731841847744,-500.0,0.00021917,2]
[342419378,1731841847753,-500.0,0.00021917,2]
[342419379,1731841847763,-500.0,0.00021917,2]
[342419380,1731841847772,-500.0,0.00021917,2]
[342419381,1731841847781,-1391.12,0.00021917,2]
[342419382,1731841847790,-1682.9,0.00021917,2]
[342419383,1731841847806,-732.81,0.00021917,2]
[342419384,1731841847817,-500.0,0.00021917,2]
[342419385,1731841847827,-500.0,0.00021917,2]
[342419386,1731841847836,-872.84,0.00021917,2]
[342419387,1731841847846,-519.46108179,0.00021917,2]
[342419388,1731841847855,-812.64,0.00021917,2]
[342419389,1731841847864,-500.0,0.00021917,2]
[342419390,1731841847874,-500.0,0.00021917,2]
[342419391,1731841847883,-500.0,0.00021917,2]
[342419392,1731841847893,-500.0,0.00021917,2]
[342419393,1731841847903,-1166.28,0.00021917,2]
[342419394,1731841847913,-500.0,0.00021917,2]
[342419395,1731841847922,-628.42,0.00021917,2]
[342419396,1731841847931,-500.0,0.00021917,2]
[342419397,1731841847941,-837.55,0.00021917,2]
[342419398,1731841847951,-508.9715172,0.00021917,2]
[342419399,1731841847960,-522.4807345,0.00021917,2]
[342419400,1731841847970,-508.7606551,0.00021917,2]
[342419401,1731841847980,-899.61,0.00021917,2]
[342419402,1731841847989,-500.0,0.00021917,2]
[342419403,1731841847999,-771.21,0.00021917,2]
[342419404,1731841848009,-500.0,0.00021917,2]
[342419405,1731841848019,-500.0,0.00021917,2]
[342419406,1731841848028,-500.0,0.00021917,2]
[342419407,1731841848038,-1105.88,0.00021917,2]
[342419408,1731841848052,-500.0,0.00021917,2]
[342419409,1731841848062,-500.0,0.00021917,2]
[342419410,1731841848073,-833.63,0.00021917,2]
[342419411,1731841848083,-500.0,0.00021917,2]
[342419412,1731841848094,-204.39906875,0.00021917,2]
[342419413,1731841848104,-500.0,0.00021917,2]
[342419414,1731841848114,-500.0,0.00021917,2]
[342419415,1731841848123,-500.0,0.00021917,2]
[342419416,1731841848133,-500.0,0.00021917,2]
[342419417,1731841848143,-500.0,0.00021917,2]
[342419418,1731841848152,-278.31237956,0.00021917,2]
[342419419,1731841848164,-500.0,0.00021917,2]
[342419420,1731841848176,-1395.88,0.00021917,2]
[342419421,1731841848185,-500.0,0.00021917,2]
[342419422,1731841848195,-500.0,0.00021917,2]
[342419423,1731841848206,-999.62,0.00021917,2]
[342419424,1731841848217,-1984.26,0.00021917,2]
[342419425,1731841848227,-529.54914828,0.00021917,2]
[342419426,1731841848238,-924.18,0.00021917,2]
[342419427,1731841848249,-500.0,0.00021917,2]
[342419428,1731841848260,-622.65,0.00021917,2]
[342419429,1731841848271,-385.96189798,0.00021917,2]
[342419430,1731841848281,-500.0,0.00021917,2]
[342419431,1731841848291,-500.0,0.00021917,2]
[342419432,1731841848305,-776.34,0.00021917,2]
[342419433,1731841848315,-702.97,0.00021917,2]
[342419434,1731841848326,-500.0,0.00021917,2]
[342419435,1731841848336,-234.14691649,0.00021917,2]
[342419436,1731841848345,-564.81522155,0.00021917,2]
[342419437,1731841848355,-500.0,0.00021917,2]
[342419438,1731841848365,-500.0,0.00021917,2]
[342419439,1731841848375,-761.21,0.00021917,2]
[342419440,1731841848384,-3199.67,0.00021917,2]
[342419441,1731841848395,-500.0,0.00021917,2]
[342419442,1731841848405,-729.42,0.00021917,2]
[342419443,1731841848415,-500.0,0.00021917,2]
[342419444,1731841848425,-500.0,0.00021917,2]
[342419445,1731841848435,-500.0,0.00021917,2]
[342419446,1731841848445,-619.18,0.00021917,2]
[342419447,1731841848455,-8624.32,0.00021917,2]
[342419448,1731841848466,-951.05,0.00021917,2]
[342419449,1731841848476,-670.25,0.00021917,2]
[342419450,1731841848486,-325.92583821,0.00021917,2]
[342419451,1731841848496,-559.52,0.00021917,2]
[342419452,1731841848507,-500.0,0.00021917,2]
[342419453,1731841848517,-500.0,0.00021917,2]
[342419454,1731841848527,-500.0,0.00021917,2]
[342419455,1731841848537,-521.84045272,0.00021917,2]
[342419456,1731841848550,-500.0,0.00021917,2]
[342419457,1731841848560,-500.0,0.00021917,2]
[342419458,1731841848570,-1186.14,0.00021917,2]
[342419459,1731841848580,-500.0,0.00021917,2]
[342419460,1731841848590,-1210.82,0.00021917,2]
[342419461,1731841848601,-500.0,0.00021917,2]
[342419462,1731841848612,-500.0,0.00021917,2]
[342419463,1731841848622,-500.0,0.00021917,2]
[342419464,1731841848632,-500.0,0.00021917,2]
[342419465,1731841848642,-500.0,0.00021917,2]
[342419466,1731841848652,-500.0,0.00021917,2]
[342419467,1731841848662,-48036.15,0.00021917,2]
[342419468,1731841848672,-151.0,0.00021917,2]
[342419469,1731841848682,-627.36,0.00021917,2]
[342419470,1731841848693,-274.766673,0.00021917,2]
[342419471,1731841848703,-500.0,0.00021917,2]
[342419472,1731841848713,-500.0,0.00021917,2]
[342419473,1731841848723,-500.0,0.00021917,2]
[342419474,1731841848733,-500.0,0.00021917,2]
[342419475,1731841848743,-245.79850345,0.00021917,2]
[342419476,1731841848753,-515.48119696,0.00021917,2]
[342419477,1731841848764,-500.0,0.00021917,2]
[342419478,1731841848775,-506.12575964,0.00021917,2]
[342419479,1731841848785,-500.0,0.00021917,2]
[342419480,1731841848796,-1984.96,0.00021917,2]
[342419481,1731841848806,-512.56,0.00021917,2]
[342419482,1731841848816,-500.0,0.00021917,2]
[342419483,1731841848826,-500.0,0.00021917,2]
[342419484,1731841848836,-1304.66,0.00021917,2]
[342419485,1731841848846,-484.31661181,0.00021917,2]
[342419486,1731841848856,-5296.87,0.00021917,2]
[342419487,1731841848866,-500.0,0.00021917,2]
[342419488,1731841848876,-151.0,0.00021917,2]
[342419489,1731841848886,-151.0,0.00021917,2]
[342419490,1731841848896,-151.0,0.00021917,2]
[342419491,1731841848906,-151.0,0.00021917,2]
[342419492,1731841848917,-151.0,0.00021917,2]
[342419493,1731841848927,-586.45,0.00021917,2]
[342419494,1731841848937,-151.0,0.00021917,2]
[342419495,1731841848947,-151.0,0.00021917,2]
[342419496,1731841848957,-500.0,0.00021917,2]
[342419497,1731841848967,-151.0,0.00021917,2]
[342419498,1731841848977,-151.0,0.00021917,2]
[342419499,1731841848987,-151.0,0.00021917,2]
[342419500,1731841848997,-501.85502741,0.00021917,2]
[342419501,1731841849007,-894.6,0.00021917,2]
[342419502,1731841849017,-500.0,0.00021917,2]
[342419503,1731841849027,-501.80327472,0.00021917,2]
[342419504,1731841849038,-563.01,0.00021917,2]
[342419505,1731841849050,-500.0,0.00021917,2]
[342419506,1731841849060,-151.0,0.00021917,2]
[342419507,1731841849070,-151.0,0.00021917,2]
[342419508,1731841849080,-151.0,0.00021917,2]
[342419509,1731841849091,-151.0,0.00021917,2]
[342419510,1731841849102,-500.0,0.00021917,2]
[342419511,1731841849113,-151.0,0.00021917,2]
[342419512,1731841849123,-787.3,0.00021917,2]
[342419513,1731841849134,-151.0,0.00021917,2]
[342419514,1731841849144,-787.3,0.00021917,2]
[342419515,1731841849154,-299.83749365,0.00021917,2]
[342419516,1731841849164,-787.3,0.00021917,2]
[342419517,1731841849177,-151.0,0.00021917,2]
[342419518,1731841849187,-515.81025222,0.00021917,2]
[342419519,1731841849197,-787.3,0.00021917,2]
[342419520,1731841849208,-151.0,0.00021917,2]
[342419521,1731841849219,-787.3,0.00021917,2]
[342419522,1731841849231,-787.3,0.00021917,2]
[342419523,1731841849242,-170.366832,0.00021917,2]
[342419524,1731841849254,-787.3,0.00021917,2]
[342419525,1731841849263,-787.3,0.00021917,2]
[342419526,1731841849273,-2039.21,0.00021917,2]
[342419527,1731841849284,-787.3,0.00021917,2]
[342419528,1731841849296,-500.0,0.00021917,2]
[342419529,1731841849307,-787.3,0.00021917,2]
[342419530,1731841849317,-787.3,0.00021917,2]
[342419531,1731841849328,-787.3,0.00021917,2]
[342419532,1731841849338,-787.3,0.00021917,2]
[342419533,1731841849348,-500.0,0.00021917,2]
[342419534,1731841849357,-787.3,0.00021917,2]
[342419535,1731841849368,-787.3,0.00021917,2]
[342419536,1731841849378,-787.3,0.00021917,2]
[342419537,1731841849388,-787.3,0.00021917,2]
[342419538,1731841849398,-599.97,0.00021917,2]
[342419539,1731841849409,-787.3,0.00021917,2]
[342419540,1731841849420,-500.0,0.00021917,2]
[342419541,1731841849429,-500.0,0.00021917,2]
[342419542,1731841849439,-691.75,0.00021917,2]
[342419543,1731841849450,-787.3,0.00021917,2]
[342419544,1731841849460,-787.3,0.00021917,2]
[342419545,1731841849470,-803.5,0.00021917,2]
[342419546,1731841849480,-787.3,0.00021917,2]
[342419547,1731841849490,-787.3,0.00021917,2]
[342419548,1731841849500,-500.0,0.00021917,2]
[342419549,1731841849509,-787.3,0.00021917,2]
[342419550,1731841849520,-500.0,0.00021917,2]
[342419551,1731841849530,-787.34527867,0.00021917,2]
[342419552,1731841849539,-500.0,0.00021917,2]
[342419553,1731841849552,-500.0,0.00021917,2]
[342419554,1731841849567,-500.0,0.00021917,2]
[342419555,1731841849578,-659.95,0.00021917,2]
[342419556,1731841849588,-500.0,0.00021917,2]
[342419557,1731841849599,-813.64,0.00021917,2]
[342419558,1731841849608,-500.0,0.00021917,2]
[342419559,1731841849619,-500.0,0.00021917,2]
[342419560,1731841849628,-500.0,0.00021917,2]
[342419561,1731841849639,-500.0,0.00021917,2]
[342419562,1731841849648,-500.0,0.00021917,2]
[342419563,1731841849658,-5062.96,0.00021917,2]
[342419564,1731841849668,-500.0,0.00021917,2]
[342419565,1731841849678,-1561.27,0.00021917,2]
[342419566,1731841849688,-500.0,0.00021917,2]
[342419567,1731841849698,-500.0,0.00021917,2]
[342419568,1731841849709,-520.03597427,0.00021917,2]
[342419569,1731841849719,-500.0,0.00021917,2]
[342419570,1731841849729,-3018.01,0.00021917,2]
[342419571,1731841849739,-500.0,0.00021917,2]
[342419572,1731841849748,-500.0,0.00021917,2]
[342419573,1731841849758,-649.04,0.00021917,2]
[342419574,1731841849768,-500.0,0.00021917,2]
[342419575,1731841849779,-500.0,0.00021917,2]
[342419576,1731841849790,-2000.0,0.00021917,2]
[342419577,1731841849805,-318.98945788,0.00021917,2]
[342419578,1731841849815,-500.0,0.00021917,2]
[342419579,1731841849827,-500.0,0.00021917,2]
[342419580,1731841849837,-500.0,0.00021917,2]
[342419581,1731841849847,-500.0,0.00021917,2]
[342419582,1731841849858,-500.0,0.00021917,2]
[342419583,1731841849868,-904.42,0.00021917,2]
[342419584,1731841849878,-1513.26,0.00021917,2]
[342419585,1731841849887,-500.0,0.00021917,2]
[342419586,1731841849897,-500.0,0.00021917,2]
[342419587,1731841849907,-500.0,0.00021917,2]
[342419588,1731841849917,-2824.91,0.00021917,2]
[342419589,1731841849928,-500.0,0.00021917,2]
[342419590,1731841849938,-963.15,0.00021917,2]
[342419591,1731841849948,-500.0,0.00021917,2]
[342419592,1731841849959,-500.0,0.00021917,2]
[342419593,1731841849969,-502.26943574,0.00021917,2]
[342419594,1731841849979,-503.75686987,0.00021917,2]
[342419595,1731841849989,-539.27009074,0.00021917,2]
[342419596,1731841849999,-500.0,0.00021917,2]
[342419597,1731841850010,-961.09,0.00021917,2]
[342419598,1731841850019,-775.4,0.00021917,2]
[342419599,1731841850029,-500.0,0.00021917,2]
[342419600,1731841850039,-500.0,0.00021917,2]
[342419601,1731841850051,-1650.86,0.00021917,2]
[342419602,1731841850061,-677.24,0.00021917,2]
[342419603,1731841850072,-500.0,0.00021917,2]
[342419604,1731841850082,-500.0,0.00021917,2]
[342419605,1731841850092,-500.0,0.00021917,2]
[342419606,1731841850104,-1614.31,0.00021917,2]
[342419607,1731841850114,-1601.32,0.00021917,2]
[342419608,1731841850125,-1908.8,0.00021917,2]
[342419609,1731841850135,-500.0,0.00021917,2]
[342419610,1731841850144,-773.06,0.00021917,2]
[342419611,1731841850155,-500.0,0.00021917,2]
[342419612,1731841850166,-500.0,0.00021917,2]
[342419613,1731841850178,-2268.92,0.00021917,2]
[342419614,1731841850189,-500.0,0.00021917,2]
[342419615,1731841850199,-500.0,0.00021917,2]
[342419616,1731841850209,-500.0,0.00021917,2]
[342419617,1731841850220,-500.0,0.00021917,2]
[342419618,1731841850230,-500.0,0.00021917,2]
[342419619,1731841850241,-875.31,0.00021917,2]
[342419620,1731841850252,-624.14,0.00021917,2]
[342419621,1731841850262,-413.77362255,0.00021917,2]
[342419622,1731841850272,-1529.62,0.00021917,2]
[342419623,1731841850281,-500.0,0.00021917,2]
[342419624,1731841850291,-500.0,0.00021917,2]
[342419625,1731841850304,-500.0,0.00021917,2]
[342419626,1731841850314,-3295.23,0.00021917,2]
[342419627,1731841850325,-812.95,0.00021917,2]
[342419628,1731841850336,-500.0,0.00021917,2]
[342419629,1731841850346,-500.0,0.00021917,2]
[342419630,1731841850356,-2663.39,0.00021917,2]
[342419631,1731841850366,-500.0,0.00021917,2]
[342419632,1731841850376,-500.0,0.00021917,2]
[342419633,1731841850388,-500.0,0.00021917,2]
[342419634,1731841850398,-584.94411405,0.00021917,2]
[342419635,1731841850408,-686.23,0.00021917,2]
[342419636,1731841850419,-574.56284904,0.00021917,2]
[342419637,1731841850430,-500.0,0.00021917,2]
[342419638,1731841850440,-500.0,0.00021917,2]
[342419639,1731841850450,-500.0,0.00021917,2]
[342419640,1731841850461,-500.0,0.00021917,2]
[342419641,1731841850478,-500.0,0.00021917,2]
[342419642,1731841850488,-2078.1,0.00021917,2]
[342419643,1731841850498,-546.39473044,0.00021917,2]
[342419644,1731841850507,-500.0,0.00021917,2]
[342419645,1731841850517,-500.0,0.00021917,2]
[342419646,1731841850527,-527.71104777,0.00021917,2]
[342419647,1731841850537,-5163.77,0.00021917,2]
[342419648,1731841850549,-500.0,0.00021917,2]
[342419649,1731841850559,-500.0,0.00021917,2]
[342419650,1731841850569,-500.0,0.00021917,2]
[342419651,1731841850579,-500.0,0.00021917,2]
[342419652,1731841850589,-500.0,0.00021917,2]
[342419653,1731841850599,-569.29554082,0.00021917,2]
[342419654,1731841850610,-500.0,0.00021917,2]
[342419655,1731841850619,-26224.47,0.00021917,2]
[342419656,1731841850630,-500.0,0.00021917,2]
[342419657,1731841850840,-500.0,0.00021917,2]
[342419658,1731841850865,-500.0,0.00021917,2]
[342419659,1731841850879,-500.0,0.00021917,2]
[342419660,1731841850889,-9174.94,0.00021917,2]
[342419661,1731841850898,-500.0,0.00021917,2]
[342419662,1731841850909,-2970.79,0.00021917,2]
[342419663,1731841850918,-500.0,0.00021917,2]
[342419664,1731841850928,-500.0,0.00021917,2]
[342419665,1731841850938,-551.97466134,0.00021917,2]
[342419666,1731841850948,-195.47978956,0.00021917,2]
[342419667,1731841850958,-2119.61,0.00021917,2]
[342419668,1731841850968,-784.08,0.00021917,2]
[342419669,1731841850978,-500.0,0.00021917,2]
[342419670,1731841850988,-151.0,0.00021917,2]
[342419671,1731841850998,-151.0,0.00021917,2]
[342419672,1731841851008,-500.0,0.00021917,2]
[342419673,1731841851017,-500.0,0.00021917,2]
[342419674,1731841851027,-151.0,0.00021917,2]
[342419675,1731841851036,-151.0,0.00021917,2]
[342419676,1731841851048,-153.983689,0.00021917,2]
[342419677,1731841851057,-151.0,0.00021917,2]
[342419678,1731841851067,-151.0,0.00021917,2]
[342419679,1731841851076,-151.0,0.00021917,2]
[342419680,1731841851086,-151.0,0.00021917,2]
[342419681,1731841851096,-901.07,0.00021917,2]
[342419682,1731841851106,-151.0,0.00021917,2]
[342419683,1731841851115,-151.0,0.00021917,2]
[342419684,1731841851124,-151.0,0.00021917,2]
[342419685,1731841851134,-2402.17,0.00021917,2]
[342419686,1731841851144,-151.0,0.00021917,2]
[342419687,1731841851153,-151.0,0.00021917,2]
[342419688,1731841851164,-811.23,0.00021917,2]
[342419689,1731841851174,-151.0,0.00021917,2]
[342419690,1731841851186,-5763.45,0.00021917,2]
[342419691,1731841851196,-151.0,0.00021917,2]
[342419692,1731841851206,-151.0,0.00021917,2]
[342419693,1731841851216,-151.0,0.00021917,2]
[342419694,1731841851226,-152.572751,0.00021917,2]
[342419695,1731841851236,-151.0,0.00021917,2]
[342419696,1731841851246,-151.0,0.00021917,2]
[342419697,1731841851256,-500.0,0.00021917,2]
[342419698,1731841851266,-151.0,0.00021917,2]
[342419699,1731841851276,-500.0,0.00021917,2]
[342419700,1731841851286,-296.596672,0.00021917,2]
[342419701,1731841851297,-570.86,0.00021917,2]
[342419702,1731841851307,-500.0,0.00021917,2]
[342419703,1731841851320,-413.9503477,0.00021917,2]
[342419704,1731841851330,-800.34,0.00021917,2]
[342419705,1731841851339,-500.0,0.00021917,2]
[342419706,1731841851349,-367.227154,0.00021917,2]
[342419707,1731841851360,-367.227154,0.00021917,2]
[342419708,1731841851369,-367.227154,0.00021917,2]
[342419709,1731841851379,-500.0,0.00021917,2]
[342419710,1731841851388,-367.227154,0.00021917,2]
[342419711,1731841851397,-500.0,0.00021917,2]
[342419712,1731841851406,-367.227154,0.00021917,2]
[342419713,1731841851416,-511.93374412,0.00021917,2]
[342419714,1731841851425,-865.23,0.00021917,2]
[342419715,1731841851435,-500.0,0.00021917,2]
[342419716,1731841851444,-500.0,0.00021917,2]
[342419717,1731841851453,-367.227154,0.00021917,2]
[342419718,1731841851462,-500.0,0.00021917,2]
[342419719,1731841851481,-367.227154,0.00021917,2]
[342419720,1731841851490,-367.227154,0.00021917,2]
[342419721,1731841851499,-367.227154,0.00021917,2]
[342419722,1731841851508,-367.227154,0.00021917,2]
[342419723,1731841851519,-367.227154,0.00021917,2]
[342419724,1731841851528,-367.227154,0.00021917,2]
[342419725,1731841851538,-1594.48,0.00021917,2]
[342419726,1731841851550,-367.227154,0.00021917,2]
[342419727,1731841851559,-500.0,0.00021917,2]
[342419728,1731841851568,-1117.41,0.00021917,2]
[342419729,1731841851578,-500.0,0.00021917,2]
[342419730,1731841851587,-367.227154,0.00021917,2]
[342419731,1731841851596,-367.227154,0.00021917,2]
[342419732,1731841851605,-367.227154,0.00021917,2]
[342419733,1731841851614,-500.0,0.00021917,2]
[342419734,1731841851625,-367.227154,0.00021917,2]
[342419735,1731841851634,-511.34395989,0.00021917,2]
[342419736,1731841851643,-367.227154,0.00021917,2]
[342419737,1731841851652,-367.227154,0.00021917,2]
[342419738,1731841851662,-367.227162,0.00021917,2]
[342419739,1731841851671,-500.0,0.00021917,2]
[342419740,1731841851681,-500.0,0.00021917,2]
[342419741,1731841851690,-500.0,0.00021917,2]
[342419742,1731841851699,-533.42741027,0.00021917,2]
[342419743,1731841851708,-571.54,0.00021917,2]
[342419744,1731841851718,-500.0,0.00021917,2]
[342419745,1731841851727,-500.0,0.00021917,2]
[342419746,1731841851736,-500.0,0.00021917,2]
[342419747,1731841851745,-500.0,0.00021917,2]
[342419748,1731841851755,-3530.89,0.00021917,2]
[342419749,1731841851764,-500.0,0.00021917,2]
[342419750,1731841851773,-813.59,0.00021917,2]
[342419751,1731841851782,-500.0,0.00021917,2]
[342419752,1731841851791,-1891.55,0.00021917,2]
[342419753,1731841851804,-500.0,0.00021917,2]
[342419754,1731841851812,-151.0,0.00021917,2]
[342419755,1731841851822,-151.0,0.00021917,2]
[342419756,1731841851832,-151.0,0.00021917,2]
[342419757,1731841851841,-151.0,0.00021917,2]
[342419758,1731841851850,-151.0,0.00021917,2]
[342419759,1731841851860,-299.43702,0.00021917,2]
[342419760,1731841851869,-4190.71,0.00021917,2]
[342419761,1731841851878,-500.0,0.00021917,2]
[342419762,1731841851887,-1345.38,0.00021917,2]
[342419763,1731841851896,-815.98,0.00021917,2]
[342419764,1731841851906,-527.94851251,0.00021917,2]
[342419765,1731841851915,-4175.05,0.00021917,2]
[342419766,1731841851924,-6896.85,0.00021917,2]
[342419767,1731841851934,-814.92,0.00021917,2]
[342419768,1731841851943,-501.2975866,0.00021917,2]
[342419769,1731841851953,-500.0,0.00021917,2]
[342419770,1731841851962,-500.0,0.00021917,2]
[342419771,1731841851971,-500.0,0.00021917,2]
[342419772,1731841851980,-519.92528418,0.00021917,2]
[342419773,1731841851990,-500.0,0.00021917,2]
[342419774,1731841851999,-151.0,0.00021917,2]
[342419775,1731841852008,-3203.57,0.00021917,2]
[342419776,1731841852017,-500.0,0.00021917,2]
[342419777,1731841852026,-500.0,0.00021917,2]
[342419778,1731841852035,-151.0,0.00021917,2]
[342419779,1731841852046,-151.0,0.00021917,2]
[342419780,1731841852055,-579.37,0.00021917,2]
[342419781,1731841852064,-151.0,0.00021917,2]
[342419782,1731841852074,-500.0,0.00021917,2]
[342419783,1731841852084,-500.0,0.00021917,2]
[342419784,1731841852094,-151.0,0.00021917,2]
[342419785,1731841852103,-151.0,0.00021917,2]
[342419786,1731841852113,-500.0,0.00021917,2]
[342419787,1731841852122,-151.0,0.00021917,2]
[342419788,1731841852132,-151.0,0.00021917,2]
[342419789,1731841852143,-500.0,0.00021917,2]
[342419790,1731841852153,-151.0,0.00021917,2]
[342419791,1731841852163,-902.94,0.00021917,2]
[342419792,1731841852176,-151.0,0.00021917,2]